fUSD/lending_fUSD_20241026
["ID","MTS","AMOUNT","RATE_DAILY","PERIOD"]
[340853879,1729945839965,-186.254177,0.0004176,14]
[340853880,1729945839974,-312.424967,0.0004176,14]
[340853881,1729945839983,-186.254177,0.0004176,14]
[340853882,1729945839992,-151.0,0.0004176,14]
[340853883,1729945840002,-151.0,0.0004176,14]
[340853884,1729945840011,-215.643596,0.0004176,14]
[340853885,1729945840020,-215.643596,0.0004176,14]
[340853886,1729945840030,-1765.402562,0.0004176,14]
[340853887,1729945840040,-1765.402562,0.0004176,14]
[340853888,1729945840049,-151.0,0.0004176,14]
[340853889,1729945840058,-151.0,0.0004176,14]
[340853890,1729945840068,-153.310225,0.0004176,14]
[340853891,1729945840077,-151.0,0.0004176,14]
[340853892,1729945840086,-151.0,0.0004176,14]
[340853893,1729945840096,-196.377902,0.0004176,14]
[340853894,1729945840105,-185.221109,0.0004176,14]
[340853895,1729945840114,-185.221109,0.0004176,14]
[340853896,1729945840123,-151.0,0.0004176,14]
[340853897,1729945840132,-500.0,0.0004176,2]
[340853898,1729945840141,-50605.6818,0.0004176,2]
[340853899,1729945840151,-26179.2742,0.0004176,2]
[340853900,1729945840160,-187.17903974,0.00041773,10]
[340853901,1729945840169,-500.0,0.00041773,2]
[340853902,1729945840179,-151.0,0.0004186,14]
[340853903,1729945840188,-151.0,0.0004186,14]
[340853904,1729945840197,-151.0,0.0004186,14]
[340853905,1729945840206,-151.0,0.0004186,14]
[340853906,1729945840215,-151.0,0.0004186,14]
[340853907,1729945840225,-151.0,0.0004186,14]
[340853908,1729945840235,-151.0,0.0004186,7]
[340853909,1729945840243,-151.0,0.0004186,7]
[340853910,1729945840253,-151.0,0.0004186,14]
[340853911,1729945840263,-151.0,0.0004186,14]
[340853912,1729945840272,-151.0,0.0004186,14]
[340853913,1729945840281,-151.0,0.0004186,14]
[340853914,1729945840290,-151.0,0.0004186,14]
[340853915,1729945840299,-151.0,0.0004186,14]
[340853916,1729945840308,-160.194629,0.0004186,14]
[340853917,1729945840317,-291.8165,0.0004186,14]
[340853918,1729945840326,-291.8165,0.0004186,14]
[340853919,1729945840337,-151.0,0.0004186,14]
[340853920,1729945840346,-151.0,0.0004186,14]
[340853921,1729945840355,-208.097844,0.0004186,14]
[340853922,1729945840364,-245.081872,0.0004186,14]
[340853923,1729945840374,-245.081872,0.0004186,14]
[340853924,1729945840383,-151.0,0.0004186,14]
[340853925,1729945840392,-239.357598,0.0004186,14]
[340853926,1729945840401,-294.681552,0.0004186,14]
[340853927,1729945840410,-151.0,0.0004186,14]
[340853928,1729945840419,-155.619721,0.0004186,14]
[340853929,1729945840429,-511.008525,0.0004186,14]
[340853930,1729945840438,-151.0,0.0004186,14]
[340853931,1729945840447,-151.0,0.0004186,14]
[340853932,1729945840456,-151.0,0.0004186,14]
[340853933,1729945840465,-151.0,0.0004186,14]
[340853934,1729945840475,-312.424967,0.0004186,14]
[340853935,1729945840484,-151.0,0.0004186,14]
[340853936,1729945840493,-186.254177,0.0004186,14]
[340853937,1729945840502,-312.424967,0.0004186,14]
[340853938,1729945840511,-186.254177,0.0004186,14]
[340853939,1729945840520,-151.0,0.0004186,14]
[340853940,1729945840529,-151.0,0.0004186,14]
[340853941,1729945840538,-215.643596,0.0004186,14]
[340853942,1729945840548,-215.643596,0.0004186,14]
[340853943,1729945840557,-1765.402562,0.0004186,14]
[340853944,1729945840566,-1765.402562,0.0004186,14]
[340853945,1729945840575,-151.0,0.0004186,14]
[340853946,1729945840586,-151.0,0.0004186,14]
[340853947,1729945840595,-157.171219,0.0004186,14]
[340853948,1729945840607,-185.221109,0.0004186,14]
[340853949,1729945840616,-185.221109,0.0004186,14]
[340853950,1729945840626,-151.0,0.0004186,14]
[340853951,1729945840635,-400.0,0.000419,15]
[340853952,1729945840644,-156.9,0.00041934,2]
[340853953,1729945840654,-156.9,0.00041976,2]
[340853954,1729945840663,-20065.0,0.00042,2]
[340853955,1729945840673,-151.0,0.00042,14]
[340853956,1729945840682,-151.0,0.00042,14]
[340853957,1729945840692,-151.0,0.00042,14]
[340853958,1729945840701,-151.0,0.00042,14]
[340853959,1729945840710,-151.0,0.00042,14]
[340853960,1729945840720,-151.0,0.00042,14]
[340853961,1729945840729,-291.8165,0.00042,14]
[340853962,1729945840739,-291.8165,0.00042,14]
[340853963,1729945840748,-151.0,0.00042,14]
[340853964,1729945840757,-151.0,0.00042,14]
[340853965,1729945840766,-11528.0,0.00042,5]
[340853966,1729945840775,-245.081872,0.00042,14]
[340853967,1729945840785,-245.081872,0.00042,14]
[340853968,1729945840794,-151.0,0.00042,14]
[340853969,1729945840807,-151.0,0.00042,14]
[340853970,1729945840817,-511.008525,0.00042,14]
[340853971,1729945840826,-151.0,0.00042,14]
[340853972,1729945840837,-151.0,0.00042,14]
[340853973,1729945840846,-151.0,0.00042,14]
[340853974,1729945840855,-151.0,0.00042,14]
[340853975,1729945840864,-312.424967,0.00042,14]
[340853976,1729945840874,-186.254177,0.00042,14]
[340853977,1729945840883,-312.424967,0.00042,14]
[340853978,1729945840892,-186.254177,0.00042,14]
[340853979,1729945840901,-151.0,0.00042,14]
[340853980,1729945840910,-151.0,0.00042,14]
[340853981,1729945840919,-215.643596,0.00042,14]
[340853982,1729945840928,-215.643596,0.00042,14]
[340853983,1729945840938,-1765.402562,0.00042,14]
[340853984,1729945840947,-1765.402562,0.00042,14]
[340853985,1729945840956,-151.0,0.00042,14]
[340853986,1729945840966,-151.0,0.00042,14]
[340853987,1729945840975,-185.221109,0.00042,14]
[340853988,1729945840984,-185.221109,0.00042,14]
[340853989,1729945840994,-151.0,0.00042,14]
[340853990,1729945841003,-156.9,0.00042018,2]
[340853991,1729945841013,-167.32,0.00042032,2]
[340853992,1729945841022,-156.9,0.0004206,2]
[340853993,1729945841031,-151.0,0.000421,14]
[340853994,1729945841041,-151.0,0.000421,7]
[340853995,1729945841050,-151.0,0.000421,7]
[340853996,1729945841060,-150.0,0.000421,45]
[340853997,1729945841070,-156.9,0.00042101,2]
[340853998,1729945841080,-156.9,0.00042143,2]
[340853999,1729945841094,-151.0,0.00042161,14]
[340854000,1729945841104,-511.008525,0.00042161,14]
[340854001,1729945841113,-151.0,0.00042161,14]
[340854002,1729945841122,-178.015531,0.00042161,14]
[340854003,1729945841132,-151.0,0.00042161,14]
[340854004,1729945841141,-151.0,0.00042161,14]
[340854005,1729945841150,-312.424967,0.00042161,14]
[340854006,1729945841160,-186.254177,0.00042161,14]
[340854007,1729945841169,-312.424967,0.00042161,14]
[340854008,1729945841178,-186.254177,0.00042161,14]
[340854009,1729945841188,-151.0,0.00042161,14]
[340854010,1729945841198,-151.0,0.00042161,14]
[340854011,1729945841207,-215.643596,0.00042161,14]
[340854012,1729945841304,-215.643596,0.00042161,14]
[340854013,1729945841313,-1765.402562,0.00042161,14]
[340854014,1729945841323,-1765.402562,0.00042161,14]
[340854015,1729945841334,-151.0,0.00042161,14]
[340854016,1729945841343,-151.0,0.00042161,14]
[340854017,1729945841352,-151.0,0.00042171,14]
[340854018,1729945841361,-151.0,0.00042171,14]
[340854019,1729945841370,-151.0,0.00042171,14]
[340854020,1729945841380,-155.539807,0.00042171,14]
[340854021,1729945841390,-151.0,0.00042171,7]
[340854022,1729945841399,-151.0,0.00042171,7]
[340854023,1729945841408,-151.0,0.00042171,14]
[340854024,1729945841417,-4358.493606,0.00042171,2]
[340854025,1729945841426,-151.0,0.00042171,14]
[340854026,1729945841435,-151.0,0.00042171,14]
[340854027,1729945841445,-235.600357,0.00042171,14]
[340854028,1729945841454,-151.0,0.00042171,14]
[340854029,1729945841463,-45793.9871178,0.00042171,2]
[340854030,1729945841472,-5539.8596093,0.00042171,2]
[340854031,1729945841481,-291.8165,0.00042171,14]
[340854032,1729945841489,-291.8165,0.00042171,14]
[340854033,1729945841499,-151.0,0.00042171,14]
[340854034,1729945841508,-245.081872,0.00042171,14]
[340854035,1729945841517,-245.081872,0.00042171,14]
[340854036,1729945841526,-151.0,0.00042171,14]
[340854037,1729945841535,-199.300718,0.00042171,14]
[340854038,1729945841543,-511.008525,0.00042171,14]
[340854039,1729945841553,-151.0,0.00042171,14]
[340854040,1729945841562,-151.0,0.00042171,14]
[340854041,1729945841571,-312.424967,0.00042171,14]
[340854042,1729945841580,-312.424967,0.00042171,14]
[340854043,1729945841589,-312.424967,0.00042171,14]
[340854044,1729945841598,-186.254177,0.00042171,14]
[340854045,1729945841611,-312.424967,0.00042171,14]
[340854046,1729945841621,-186.254177,0.00042171,14]
[340854047,1729945841630,-312.424967,0.00042171,14]
[340854048,1729945841639,-186.254177,0.00042171,14]
[340854049,1729945841648,-312.424967,0.00042171,14]
[340854050,1729945841658,-186.254177,0.00042171,14]
[340854051,1729945841667,-186.254177,0.00042171,14]
[340854052,1729945841676,-186.254177,0.00042171,14]
[340854053,1729945841687,-5000.0,0.00042171,14]
[340854054,1729945841697,-5000.0,0.00042171,14]
[340854055,1729945841707,-5000.0,0.00042171,14]
[340854056,1729945841716,-5000.0,0.00042171,14]
[340854057,1729945841726,-5000.0,0.00042171,14]
[340854058,1729945841735,-5000.0,0.00042171,14]
[340854059,1729945841744,-5000.0,0.00042171,14]
[340854060,1729945841754,-5000.0,0.00042171,14]
[340854061,1729945841763,-5000.0,0.00042171,14]
[340854062,1729945841772,-5000.0,0.00042171,14]
[340854063,1729945841781,-5000.0,0.00042171,14]
[340854064,1729945841790,-5000.0,0.00042171,14]
[340854065,1729945841799,-5000.0,0.00042171,14]
[340854066,1729945841809,-5000.0,0.00042171,14]
[340854067,1729945841818,-5000.0,0.00042171,14]
[340854068,1729945841827,-1041.403888,0.00042171,14]
[340854069,1729945841837,-151.0,0.00042171,14]
[340854070,1729945841846,-151.0,0.00042171,14]
[340854071,1729945841855,-215.643596,0.00042171,14]
[340854072,1729945841868,-215.643596,0.00042171,14]
[340854073,1729945841877,-1765.402562,0.00042171,14]
[340854074,1729945841887,-1765.402562,0.00042171,14]
[340854075,1729945841896,-151.0,0.00042171,14]
[340854076,1729945841906,-151.0,0.00042171,14]
[340854077,1729945841915,-185.221109,0.00042171,14]
[340854078,1729945841924,-185.221109,0.00042171,14]
[340854079,1729945841933,-185.221109,0.00042171,14]
[340854080,1729945841942,-185.221111,0.00042171,14]
[340854081,1729945841951,-301.349672,0.00042171,14]
[340854082,1729945841960,-500.0,0.00042173,10]
[340854083,1729945841970,-500.0,0.00042173,7]
[340854084,1729945841980,-641.0,0.000422,2]
[340854085,1729945841990,-214.53702846,0.00042282,14]
[340854086,1729945841999,-511.008525,0.00042294,14]
[340854087,1729945842007,-511.008525,0.00042294,14]
[340854088,1729945842016,-151.0,0.00042294,14]
[340854089,1729945842026,-151.0,0.00042294,14]
[340854090,1729945842036,-312.424967,0.00042294,14]
[340854091,1729945842047,-186.254177,0.00042294,14]
[340854092,1729945842057,-312.424967,0.00042294,14]
[340854093,1729945842066,-186.254177,0.00042294,14]
[340854094,1729945842075,-151.0,0.00042294,14]
[340854095,1729945842085,-193.030465,0.00042294,14]
[340854096,1729945842094,-215.643596,0.00042294,14]
[340854097,1729945842104,-215.643596,0.00042294,14]
[340854098,1729945842113,-1765.402562,0.00042294,14]
[340854099,1729945842122,-1765.402562,0.00042294,14]
[340854100,1729945842132,-151.0,0.00042294,14]
[340854101,1729945842141,-207.444062,0.00042294,14]
[340854102,1729945842150,-180.54874121,0.00042294,2]
[340854103,1729945842159,-500.0,0.00042304,7]
[340854104,1729945842168,-500.0,0.00042304,7]
[340854105,1729945842178,-500.0,0.00042304,7]
[340854106,1729945842187,-500.0,0.00042304,7]
[340854107,1729945842200,-500.0,0.00042304,7]
[340854108,1729945842209,-500.0,0.00042304,7]
[340854109,1729945842218,-500.0,0.00042304,7]
[340854110,1729945842229,-500.0,0.00042304,7]
[340854111,1729945842239,-500.0,0.00042304,7]
[340854112,1729945842250,-500.0,0.00042304,7]
[340854113,1729945842261,-500.0,0.00042304,7]
[340854114,1729945842271,-500.0,0.00042304,7]
[340854115,1729945842280,-500.0,0.00042304,7]
[340854116,1729945842290,-500.0,0.00042304,7]
[340854117,1729945842299,-500.0,0.00042304,7]
[340854118,1729945842308,-500.0,0.00042304,7]
[340854119,1729945842317,-500.0,0.00042304,7]
[340854120,1729945842326,-500.0,0.00042304,7]
[340854121,1729945842336,-500.0,0.00042304,7]
[340854122,1729945842345,-500.0,0.00042304,7]
[340854123,1729945842355,-500.0,0.00042304,7]
[340854124,1729945842366,-500.0,0.00042304,7]
[340854125,1729945842377,-500.0,0.00042304,7]
[340854126,1729945842386,-500.0,0.00042304,7]
[340854127,1729945842395,-500.0,0.00042304,7]
[340854128,1729945842404,-500.0,0.00042304,7]
[340854129,1729945842414,-537.82,0.00042304,7]
[340854130,1729945842423,-500.0,0.00042304,7]
[340854131,1729945842433,-500.0,0.00042304,7]
[340854132,1729945842443,-110.77033088,0.00042304,7]
[340854133,1729945842849,-151.0,0.0004148,7]
[340854134,1729945842860,-151.0,0.0004165,7]
[340854135,1729945842869,-151.0,0.0004166,7]
[340854136,1729945842877,-151.0,0.00041741,7]
[340854137,1729945842887,-151.0,0.0004175,7]
[340854138,1729945842896,-151.0,0.0004176,7]
[340854139,1729945842905,-504.97529919,0.00041773,10]
[340854140,1729945843006,-151.0,0.0004186,7]
[340854141,1729945843017,-389.22966912,0.00042304,7]
[340854142,1729945843027,-500.0,0.00042304,7]
[340854143,1729945843036,-500.0,0.00042304,7]
[340854144,1729945843045,-500.0,0.00042304,7]
[340854145,1729945843054,-500.0,0.00042304,7]
[340854146,1729945843063,-500.0,0.00042304,7]
[340854147,1729945843072,-500.0,0.00042304,7]
[340854148,1729945843083,-500.0,0.00042304,7]
[340854149,1729945843092,-500.0,0.00042304,7]
[340854150,1729945843101,-500.0,0.00042304,7]
[340854151,1729945843110,-500.0,0.00042304,7]
[340854152,1729945843120,-500.0,0.00042304,7]
[340854153,1729945843129,-500.0,0.00042304,7]
[340854154,1729945843138,-189.22,0.00042304,7]
[340854155,1729945843148,-151.0,0.00042304,14]
[340854156,1729945843157,-208.59927086,0.00042304,14]
[340854157,1729945843444,-151.0,0.0004148,7]
[340854158,1729945843454,-151.0,0.00042,7]
[340854159,1729945843463,-151.0,0.00042171,7]
[340854160,1729945843473,-151.0,0.00042171,7]
[340854161,1729945843482,-83.21722914,0.00042304,14]
[340854162,1729945843491,-291.8165,0.00042304,14]
[340854163,1729945843501,-245.081872,0.00042304,14]
[340854164,1729945843510,-245.081872,0.00042304,14]
[340854165,1729945843519,-245.081872,0.00042304,14]
[340854166,1729945843528,-245.081872,0.00042304,14]
[340854167,1729945843538,-245.081872,0.00042304,14]
[340854168,1729945843548,-245.081872,0.00042304,14]
[340854169,1729945843557,-151.0,0.00042304,14]
[340854170,1729945843568,-151.0,0.00042304,14]
[340854171,1729945843579,-151.0,0.00042304,14]
[340854172,1729945843589,-511.008525,0.00042304,14]
[340854173,1729945843600,-151.0,0.00042304,14]
[340854174,1729945843613,-151.0,0.00042304,14]
[340854175,1729945843622,-312.424967,0.0004236,14]
[340854176,1729945843632,-186.254177,0.0004236,14]
[340854177,1729945843641,-312.424967,0.0004236,14]
[340854178,1729945843651,-186.254177,0.0004236,14]
[340854179,1729945843661,-151.0,0.0004236,14]
[340854180,1729945843671,-215.643596,0.0004236,14]
[340854181,1729945843681,-215.643596,0.0004236,14]
[340854182,1729945843691,-1765.402562,0.0004236,14]
[340854183,1729945843701,-1765.402562,0.0004236,14]
[340854184,1729945843712,-151.0,0.0004236,14]
[340854185,1729945843722,-151.0,0.0004237,7]
[340854186,1729945843732,-151.0,0.0004237,7]
[340854187,1729945843741,-151.0,0.0004237,14]
[340854188,1729945843750,-151.0,0.0004237,14]
[340854189,1729945843760,-151.0,0.0004237,14]
[340854190,1729945843770,-151.0,0.0004237,14]
[340854191,1729945843779,-151.0,0.0004238,14]
[340854192,1729945843788,-155.22404,0.0004238,14]
[340854193,1729945843798,-5000.0,0.0004238,50]
[340854195,1729945843808,-1009.14060649,0.00042416,5]
[340854196,1729945843817,-1119.70619978,0.00042422,5]
[340854197,1729945843827,-770.78,0.000426,7]
[340854198,1729945843838,-900.0,0.000426,15]
[340854199,1729945843847,-200.0,0.00042629,2]
[340854200,1729945843856,-187.0,0.00042629,2]
[340854201,1729945843865,-200.0,0.00042642,2]
[340854202,1729945843875,-200.0,0.00042642,2]
[340854203,1729945843885,-705.88368927,0.00042651,30]
[340854204,1729945843894,-159.711936,0.00042673,10]
[340854205,1729945843903,-291.8165,0.000427,14]
[340854206,1729945843912,-291.8165,0.000427,14]
[340854207,1729945843922,-511.008525,0.000427,14]
[340854208,1729945843931,-151.0,0.000427,14]
[340854209,1729945843940,-151.0,0.000427,14]
[340854210,1729945843949,-1300.0,0.000427,15]
[340854211,1729945843958,-245.081872,0.000428,14]
[340854212,1729945843967,-245.081872,0.000428,14]
[340854213,1729945843976,-151.0,0.000428,14]
[340854214,1729945843986,-1800.0,0.000428,15]
[340854215,1729945843995,-490.0,0.000428,30]
[340854216,1729945844004,-1744.1235768,0.0004287,3]
[340854217,1729945844014,-151.0,0.00042889,14]
[340854218,1729945844023,-215.643596,0.00042889,14]
[340854219,1729945844033,-215.643596,0.00042889,14]
[340854220,1729945844042,-1765.402562,0.00042889,14]
[340854221,1729945844051,-1765.402562,0.00042889,14]
[340854222,1729945844060,-151.0,0.00042889,14]
[340854223,1729945844070,-312.424967,0.0004289,14]
[340854224,1729945844079,-186.254177,0.0004289,14]
[340854225,1729945844088,-312.42496,0.0004289,14]
[340854226,1729945844097,-186.254172,0.0004289,14]
[340854227,1729945844106,-2200.0,0.000429,15]
[340854228,1729945844116,-1000.0,0.0004297,3]
[340854229,1729945844125,-151.0,0.0004297,14]
[340854230,1729945844135,-151.0,0.0004297,7]
[340854231,1729945844144,-151.0,0.0004297,7]
[340854232,1729945844153,-151.0,0.0004297,14]
[340854233,1729945844161,-151.0,0.0004297,14]
[340854234,1729945844170,-151.0,0.0004297,14]
[340854235,1729945844179,-185.288236,0.0004297,14]
[340854236,1729945844189,-150.0,0.00042973,2]
[340854237,1729945844198,-150.0,0.00042999,2]
[340854238,1729945844207,-1007.9,0.00042999,2]
[340854239,1729945844216,-150.0,0.00043,5]
[340854240,1729945844225,-1500.0,0.00043013,7]
[340854241,1729945844234,-150.0,0.00043014,2]
[340854242,1729945844244,-150.0,0.00043015,2]
[340854243,1729945844254,-150.0,0.00043017,2]
[340854244,1729945844263,-300.0,0.00043023,2]
[340854245,1729945844272,-150.0,0.00043024,2]
[340854246,1729945844282,-150.0,0.00043029,2]
[340854247,1729945844291,-150.0,0.00043032,2]
[340854248,1729945844301,-150.0,0.00043038,2]
[340854249,1729945844310,-150.0,0.00043042,2]
[340854250,1729945844320,-150.0,0.00043042,2]
[340854251,1729945844329,-998.50489564,0.00043042,5]
[340854252,1729945844339,-150.0,0.00043045,2]
[340854253,1729945844348,-150.0,0.00043045,2]
[340854254,1729945844358,-150.0,0.00043047,2]
[340854255,1729945844367,-150.0,0.00043048,2]
[340854256,1729945844377,-150.0,0.00043049,2]
[340854257,1729945844386,-150.0,0.00043058,2]
[340854258,1729945844396,-150.0,0.00043058,2]
[340854259,1729945844405,-150.0,0.0004306,2]
[340854260,1729945844415,-154.52467995,0.00043064,7]
[340854261,1729945844425,-150.0,0.00043066,2]
[340854262,1729945844434,-1439.05406125,0.00043067,7]
[340854263,1729945844443,-150.0,0.00043068,2]
[340854264,1729945844453,-150.0,0.00043069,2]
[340854265,1729945844462,-154.0,0.0004307,7]
[340854266,1729945844471,-1000.0,0.0004307,3]
[340854267,1729945844481,-946.17424541,0.0004307,3]
[340854268,1729945844490,-511.008525,0.0004307,14]
[340854269,1729945844498,-151.0,0.0004307,14]
[340854270,1729945844507,-151.0,0.0004307,14]
[340854271,1729945844517,-150.0,0.00043073,2]
[340854272,1729945844527,-150.0,0.00043074,2]
[340854273,1729945844536,-150.0,0.00043075,2]
[340854274,1729945844545,-150.0,0.00043076,2]
[340854275,1729945844555,-410.08,0.00043077,2]
[340854276,1729945844564,-1500.0,0.00043078,7]
[340854277,1729945844574,-150.0,0.0004308,2]
[340854278,1729945844586,-150.0,0.00043083,2]
[340854279,1729945844595,-151.0,0.00043083,14]
[340854280,1729945844607,-215.643596,0.00043083,14]
[340854281,1729945844618,-215.643605,0.00043083,14]
[340854282,1729945844629,-1765.402562,0.00043083,14]
[340854283,1729945844639,-1765.402552,0.00043083,14]
[340854284,1729945844650,-151.0,0.00043083,14]
[340854285,1729945844661,-150.0,0.00043084,2]
[340854286,1729945844671,-150.0,0.00043085,2]
[340854287,1729945844682,-150.0,0.00043087,2]
[340854288,1729945844693,-150.0,0.0004309,2]
[340854289,1729945844797,-150.0,0.00043092,2]
[340854290,1729945844807,-150.0,0.00043097,2]
[340854291,1729945844818,-150.0,0.00043098,2]
[340854292,1729945844828,-151.0,0.00043105,14]
[340854293,1729945844844,-151.0,0.00043105,14]
[340854294,1729945844855,-151.0,0.00043105,14]
[340854295,1729945844865,-152.634797,0.00043105,14]
[340854296,1729945844876,-291.8165,0.00043105,14]
[340854297,1729945844886,-291.8165,0.00043105,14]
[340854298,1729945844897,-291.8165,0.00043105,14]
[340854299,1729945844906,-291.8165,0.00043105,14]
[340854300,1729945844916,-291.8165,0.00043105,14]
[340854301,1729945844927,-291.8165,0.00043105,14]
[340854302,1729945844937,-150.0,0.00043105,2]
[340854303,1729945844948,-245.081872,0.00043105,14]
[340854304,1729945844959,-245.081872,0.00043105,14]
[340854305,1729945844969,-151.0,0.00043105,14]
[340854306,1729945844981,-511.00853,0.00043105,14]
[340854307,1729945844992,-151.0,0.00043105,14]
[340854308,1729945845002,-232.507052,0.00043105,14]
[340854309,1729945845012,-150.0,0.00043112,2]
[340854310,1729945845022,-150.0,0.0004312,2]
[340854311,1729945845032,-150.0,0.00043121,2]
[340854312,1729945845042,-150.0,0.00043123,2]
[340854313,1729945845054,-150.0,0.0004313,2]
[340854314,1729945845065,-150.0,0.00043133,2]
[340854315,1729945845075,-150.0,0.00043137,2]
[340854316,1729945845085,-150.0,0.00043138,2]
[340854317,1729945845095,-151.0,0.00043141,14]
[340854318,1729945845104,-150.0,0.00043141,2]
[340854319,1729945845114,-150.0,0.00043142,2]
[340854320,1729945845123,-150.0,0.00043142,2]
[340854321,1729945845132,-1000.0,0.00043142,2]
[340854322,1729945845142,-150.0,0.00043146,2]
[340854323,1729945845153,-150.0,0.00043148,2]
[340854324,1729945845163,-150.0,0.00043149,2]
[340854325,1729945845173,-1391.62785382,0.0004315,2]
[340854326,1729945845183,-150.0,0.00043153,2]
[340854327,1729945845192,-150.0,0.00043155,2]
[340854328,1729945845201,-150.0,0.00043156,2]
[340854329,1729945845212,-150.0,0.00043157,2]
[340854330,1729945845222,-150.0,0.00043158,2]
[340854331,1729945845242,-150.0,0.00043159,2]
[340854332,1729945845255,-150.0,0.00043165,2]
[340854333,1729945845266,-150.0,0.00043167,2]
[340854334,1729945845276,-150.0,0.00043167,2]
[340854335,1729945845287,-1000.0,0.0004317,3]
[340854336,1729945845298,-500.0,0.0004317,3]
[340854337,1729945845309,-151.0,0.00043173,7]
[340854338,1729945845320,-151.0,0.00043173,7]
[340854339,1729945845331,-151.0,0.00043173,14]
[340854340,1729945845341,-151.0,0.00043173,14]
[340854341,1729945845351,-291.8165,0.00043173,14]
[340854342,1729945845362,-291.816507,0.00043173,14]
[340854343,1729945845372,-245.081872,0.00043173,14]
[340854344,1729945845382,-245.081872,0.00043173,14]
[340854345,1729945845392,-151.0,0.00043173,14]
[340854346,1729945845403,-284.46816432,0.00043178,2]
[340854347,1729945845413,-23341.14447053,0.00043182,30]
[340854348,1729945845423,-296.6010739,0.00043182,2]
[340854349,1729945845433,-287.94809088,0.00043182,2]
[340854350,1729945845443,-2147.06125485,0.00043182,2]
[340854351,1729945845453,-3979.76043072,0.00043182,2]
[340854352,1729945845463,-228.11286498,0.00043182,2]
[340854353,1729945845473,-8987.83194334,0.00043182,2]
[340854354,1729945845482,-171.07892215,0.00043183,10]
[340854355,1729945845492,-175.41690708,0.00043183,17]
[340854356,1729945845501,-151.454244,0.00043183,14]
[340854357,1729945845512,-151.0,0.00043183,7]
[340854358,1729945845522,-151.0,0.00043183,7]
[340854359,1729945845533,-151.0,0.00043183,7]
[340854360,1729945845543,-151.0,0.00043183,7]
[340854361,1729945845553,-150.0,0.00043187,2]
[340854362,1729945845564,-435.0,0.0004319,2]
[340854363,1729945845574,-150.0,0.00043193,2]
[340854364,1729945845585,-150.0,0.00043193,2]
[340854365,1729945845595,-150.0,0.00043197,2]
[340854366,1729945845606,-492.0,0.000432,30]
[340854367,1729945845619,-3183.355259,0.000432,54]
[340854368,1729945845630,-150.0,0.00043201,2]
[340854369,1729945845641,-391.2,0.00043202,7]
[340854370,1729945845651,-150.0,0.00043204,2]
[340854371,1729945845663,-150.0,0.00043204,2]
[340854372,1729945845674,-159.02075616,0.00043205,2]
[340854373,1729945845686,-150.0,0.00043206,2]
[340854374,1729945845697,-150.0,0.00043207,2]
[340854375,1729945845708,-150.0,0.00043211,2]
[340854376,1729945845719,-243.60999332,0.00043212,7]
[340854377,1729945845729,-150.0,0.0004322,2]
[340854378,1729945845740,-150.0,0.00043222,2]
[340854379,1729945845751,-150.0,0.00043226,2]